[Event "AUT-ch U18 Boys 2022"]
[Site "Sankt Veit an der Glan"]
[Date "2022.04.10"]
[Round "1"]
[White "Schernthaner, David"]
[Black "Martetschlaeger, Stefan"]
[Result "1-0"]
[ECO "B31"]
[WhiteElo "2213"]
[BlackElo "1679"]
[Annotator "RC"]
[PlyCount "91"]
[EventDate "2022.04.11"]
[EventType "swiss"]
[EventCountry "AUT"]
[SourceTitle "playchess.com"]
[Source "ChessBase"]
[SourceQuality "1"]
[TimeControl "5400+30"]

1. e4 {[%emt 0:00:02]} c5 {[%emt 0:00:09]} 2. Nf3 {[%emt 0:00:05]} Nc6 {[%emt 0:00:12]} 3. Bb5 {[%emt 0:00:05]} g6 {[%emt 0:00:16]} 4. O-O {[%emt 0:01:01]} Bg7 {[%emt 0:00:43]} 5. Nc3 {[%emt 0:00:20]} Nf6 {[%emt 0:01:13]} 6. e5 {[%emt 0:01:18]} Ng4 {[%emt 0:02:38]} 7. Bxc6 {[%emt 0:00:13]} dxc6 {[%emt 0:00:09]} 8. Re1 {[%emt 0:00:14]} O-O {[%emt 0:03:41]} 9. d3 {[%emt 0:00:32]} Nh6 {[%emt 0:01:15]} 10. h3 {[%emt 0:03:22]} Nf5 {[%emt 0:04:27]} 11. Ne4 {[%emt 0:01:38]} b6 {[%emt 0:02:43]} 12. b3 {[%emt 0:21:13]} Nd4 {[%emt 0:06:12]} 13. Bb2 {[%emt 0:03:21]} Be6 {[%emt 0:20:44]} 14. c4 {[%emt 0:10:05]} Qc7 {[%emt 0:15:24]} 15. Nxd4 {[%emt 0:14:21]} cxd4 {[%emt 0:00:17]} 16. f4 {[%emt 0:00:43]} c5 {[%emt 0:01:56]} 17. Qf3 {[%emt 0:00:13]} Bc8 {[%emt 0:10:58]} 18. Bc1 {[%emt 0:02:27]} Bb7 {[%emt 0:02:24]} 19. Bd2 {[%emt 0:00:53]} Bh6 {[%emt 0:07:33]} 20. Re2 {[%emt 0:07:47]} Rae8 {[%emt 0:02:11]} 21. Qf2 {[%emt 0:01:34]} Qd7 {[%emt 0:02:59]} 22. Rae1 {[%emt 0:02:50]} Bg7 {[%emt 0:01:45]} 23. g4 {[%emt 0:08:04]} f5 {[%emt 0:02:10]} 24. exf6 {[%emt 0:00:12]} exf6 {[%emt 0:00:08]} 25. f5 {[%emt 0:00:25]} g5 {[%emt 0:00:47]} 26. b4 {[%emt 0:00:33]} Qc6 {[%emt 0:00:45]} 27. b5 {[%emt 0:01:04]} Qd7 {[%emt 0:00:19]} 28. Qh2 {[%emt 0:00:41]} h6 {[%emt 0:01:30]} 29. a4 {[%emt 0:00:40]} Re5 {[%emt 0:01:50]} 30. Nxf6+ {[%emt 0:03:30]} Bxf6 {[%emt 0:00:08]} 31. Rxe5 {[%emt 0:00:03]} Bxe5 {[%emt 0:00:32]} 32. Qxe5 {[%emt 0:00:03]} Ba8 {[%emt 0:00:46]} 33. Qe6+ {[%emt 0:02:12]} Qxe6 {[%emt 0:00:02]} 34. Rxe6 {[%emt 0:00:08]} Kg7 {[%emt 0:00:36]} 35. Rg6+ {[%emt 0:02:12]} Kh7 {[%emt 0:00:34]} 36. Kf2 {[%emt 0:00:33]} Bb7 {[%emt 0:00:55]} 37. h4 {[%emt 0:00:18]} Bc8 {[%emt 0:00:38]} 38. hxg5 {[%emt 0:00:18]} hxg5 {[%emt 0:00:15]} 39. Rxg5 {[%emt 0:00:10]} Rg8 {[%emt 0:00:54]} 40. Rxg8 {[%emt 0:00:27]} Kxg8 {[%emt 0:00:01]} 41. Bf4 {[%emt 0:00:08]} Kf7 {[%emt 0:00:43]} 42. Bb8 {[%emt 0:00:08]} a6 {[%emt 0:00:11]} 43. Bc7 {[%emt 0:00:12]} Kf6 {[%emt 0:00:18]} 44. Bxb6 {[%emt 0:00:06]} Kg5 {[%emt 0:00:51]} 45. Bxc5 {[%emt 0:00:13]} Kxg4 {[%emt 0:00:12]} 46. f6 {[%emt 0:00:04]} 1-0

[Event "AUT-ch U18 Boys 2022"]
[Site "Sankt Veit an der Glan"]
[Date "2022.04.10"]
[Round "1"]
[White "Ilijic, Mihajilo"]
[Black "Braun, Hagen"]
[Result "1-0"]
[ECO "C64"]
[WhiteElo "2079"]
[BlackElo "1252"]
[Annotator "NA RC"]
[PlyCount "85"]
[EventDate "2022.04.11"]
[EventType "swiss"]
[EventCountry "AUT"]
[SourceTitle "playchess.com"]
[Source "ChessBase"]
[SourceQuality "1"]
[TimeControl "5400+30"]

1. e4 {[%emt 0:00:08]} e5 {[%emt 0:00:03]} 2. Nf3 {[%emt 0:00:21]} Nc6 {[%emt 0:00:02]} 3. Bb5 {[%emt 0:00:11]} Bc5 {[%emt 0:01:29]} 4. O-O {[%emt 0:00:44]} d6 {[%emt 0:00:35]} 5. a3 {[%emt 0:04:56]} Nf6 {[%emt 0:01:22]} 6. Nc3 {[%emt 0:03:28]} O-O {[%emt 0:01:19]} 7. d3 {[%emt 0:00:52]} h6 {[%emt 0:02:03]} 8. Be3 {[%emt 0:05:50]} Bb6 {[%emt 0:01:33]} 9. h3 {[%emt 0:01:43]} Nd4 {[%emt 0:04:33]} 10. Bxd4 {[%emt 0:03:32]} Bxd4 {[%emt 0:00:43]} 11. Nxd4 {[%emt 0:02:06]} exd4 {[%emt 0:00:05]} 12. Ne2 {[%emt 0:00:06]} c5 {[%emt 0:00:28]} 13. Bc4 {[%emt 0:12:09]} Be6 {[%emt 0:01:46]} 14. Bxe6 {[%emt 0:03:33]} fxe6 {[%emt 0:00:08]} 15. f4 {[%emt 0:00:38]} d5 {[%emt 0:09:54]} 16. e5 {[%emt 0:01:29]} Nd7 {[%emt 0:01:57]} 17. Ng3 {[%emt 0:01:24]} Rc8 {[%emt 0:02:06]} 18. Qg4 {[%emt 0:03:20]} Rc6 {[%emt 0:03:50]} 19. Rae1 {[%emt 0:01:25]} Rf7 {[%emt 0:07:04]} 20. h4 {[%emt 0:05:29]} Qc7 {[%emt 0:04:58]} 21. f5 {[%emt 0:10:25]} exf5 {[%emt 0:02:07]} 22. Rxf5 {[%emt 0:00:34]} Rxf5 {[%emt 0:01:24]} 23. Qxf5 {[%emt 0:00:41]} Nf8 {[%emt 0:01:29]} 24. Nh5 {[%emt 0:08:45]} g6 {[%emt 0:01:10]} 25. Nf6+ {[%emt 0:00:42]} Kf7 {[%emt 0:01:22]} 26. Qf3 {[%emt 0:01:11]} Qd8 {[%emt 0:05:21]} 27. Nxd5+ {[%emt 0:03:51]} Kg7 {[%emt 0:00:53]} 28. Rf1 {[%emt 0:01:35]} Qe8 {[%emt 0:01:00]} 29. Nf6 {[%emt 0:01:27]} Qe7 {[%emt 0:02:02]} 30. Nd5 {[%emt 0:04:39]} Qe8 {[%emt 0:01:38]} 31. Nf4 {[%emt 0:00:14]} Ne6 {[%emt 0:01:11]} 32. Nxe6+ {[%emt 0:01:23]} Rxe6 {[%emt 0:00:10]} 33. Qxb7+ {[%emt 0:00:15]} Re7 {[%emt 0:00:05]} 34. Qa6 {[%emt 0:00:40]} Rxe5 {[%emt 0:00:42]} 35. Qxa7+ {[%emt 0:00:19]} Qe7 {[%emt 0:00:07]} 36. Qxe7+ {[%emt 0:00:26]} Rxe7 {[%emt 0:00:02]} 37. Kf2 {[%emt 0:00:43]} Kf7 {[%emt 0:00:59]} 38. Re1 {[%emt 0:00:20]} Rb7 {[%emt 0:00:12]} 39. b3 {[%emt 0:00:10]} c4 {[%emt 0:01:37]} 40. bxc4 {[%emt 0:02:04]} Rb2 {[%emt 0:00:09]} 41. Re2 {[%emt 0:00:07]} Ra2 {[%emt 0:00:16]} 42. Kf3 {[%emt 0:00:04]} Rxa3 {[%emt 0:00:10]} 43. Ke4 {[%emt 0:00:08]} 1-0

[Event "AUT-ch U18 Boys 2022"]
[Site "Sankt Veit an der Glan"]
[Date "2022.04.10"]
[Round "1"]
[White "Weichhart, Daniel"]
[Black "Lotz, Dominik"]
[Result "1-0"]
[ECO "A30"]
[WhiteElo "2032"]
[BlackElo "1583"]
[Annotator "NA RC"]
[PlyCount "57"]
[EventDate "2022.04.11"]
[EventType "swiss"]
[EventCountry "AUT"]
[SourceTitle "playchess.com"]
[Source "ChessBase"]
[SourceQuality "1"]
[TimeControl "5400+30"]

1. c4 {[%emt 0:00:14]} c5 {[%emt 0:00:34]} 2. Nf3 {[%emt 0:00:12]} Nc6 {[%emt 0:00:06]} 3. Nc3 {[%emt 0:01:09]} e6 {[%emt 0:00:18]} 4. d4 {[%emt 0:00:07]} cxd4 {[%emt 0:02:05]} 5. Nxd4 {[%emt 0:01:05]} a6 {[%emt 0:00:49]} 6. g3 {[%emt 0:02:20]} Nge7 {[%emt 0:03:24]} 7. Bg2 {[%emt 0:00:53]} Qc7 {[%emt 0:02:27]} 8. b3 {[%emt 0:08:54]} Nxd4 {[%emt 0:08:47]} 9. Qxd4 {[%emt 0:00:10]} Nc6 {[%emt 0:00:04]} 10. Qd2 {[%emt 0:01:14]} Qa5 {[%emt 0:04:34]} 11. Bb2 {[%emt 0:01:34]} Ba3 {[%emt 0:01:05]} 12. O-O {[%emt 0:00:23]} Bxb2 {[%emt 0:00:58]} 13. Qxb2 {[%emt 0:00:07]} O-O {[%emt 0:00:03]} 14. Rad1 {[%emt 0:00:48]} Rd8 {[%emt 0:09:24]} 15. Rd6 {[%emt 0:00:11]} Qc7 {[%emt 0:01:40]} 16. Rfd1 {[%emt 0:00:08]} Ne7 {[%emt 0:04:54]} 17. h4 {[%emt 0:03:53]} Rb8 {[%emt 0:00:45]} 18. a4 {[%emt 0:02:24]} b6 {[%emt 0:07:55]} 19. Qd2 {[%emt 0:00:53]} Kf8 {[%emt 0:00:08]} 20. Rd3 {[%emt 0:04:31]} Ng6 {[%emt 0:06:06]} 21. h5 {[%emt 0:03:04]} Ne5 {[%emt 0:00:43]} 22. Rd6 {[%emt 0:00:18]} Ng4 {[%emt 0:09:25]} 23. Qg5 {[%emt 0:00:16]} Nh6 {[%emt 0:01:14]} 24. Rc6 {[%emt 0:01:12]} f6 {[%emt 0:00:45]} 25. Qxg7+ {[%emt 0:00:07]} Kxg7 {[%emt 0:00:14]} 26. Rxc7 {[%emt 0:00:03]} Kf7 {[%emt 0:02:29]} 27. Ne4 {[%emt 0:00:22]} Ke7 {[%emt 0:00:33]} 28. Nd6 {[%emt 0:00:39]} f5 {[%emt 0:00:35]} 29. Bc6 {[%emt 0:01:46]} 1-0

[Event "AUT-ch U18 Boys 2022"]
[Site "Sankt Veit an der Glan"]
[Date "2022.04.10"]
[Round "1"]
[White "Stadlinger, Matthias"]
[Black "Loreth, Thomas"]
[Result "1-0"]
[ECO "A01"]
[WhiteElo "2013"]
[BlackElo "1628"]
[Annotator "NA RC"]
[PlyCount "71"]
[EventDate "2022.04.11"]
[EventType "swiss"]
[EventCountry "AUT"]
[SourceTitle "playchess.com"]
[Source "ChessBase"]
[SourceQuality "1"]
[TimeControl "5400+30"]

1. b3 {[%emt 0:00:02]} Nc6 {[%emt 0:01:35]} 2. Bb2 {[%emt 0:00:10]} Nf6 {[%emt 0:00:24]} 3. e3 {[%emt 0:00:34]} d5 {[%emt 0:00:45]} 4. f4 {[%emt 0:00:40]} a5 {[%emt 0:03:36]} 5. a4 {[%emt 0:00:18]} e6 {[%emt 0:01:39]} 6. Nf3 {[%emt 0:00:08]} Bd7 {[%emt 0:03:02]} 7. Be2 {[%emt 0:00:48]} Bd6 {[%emt 0:04:44]} 8. O-O {[%emt 0:00:11]} Ne7 {[%emt 0:01:52]} 9. Ne5 {[%emt 0:02:15]} Ng6 {[%emt 0:01:03]} 10. d3 {[%emt 0:03:42]} c6 {[%emt 0:00:51]} 11. Nd2 {[%emt 0:03:57]} Qb6 {[%emt 0:01:45]} 12. d4 {[%emt 0:19:57]} Ne7 {[%emt 0:05:19]} 13. Bd3 {[%emt 0:06:38]} Nf5 {[%emt 0:03:12]} 14. Qf3 {[%emt 0:04:16]} O-O {[%emt 0:05:38]} 15. g4 {[%emt 0:10:56]} Ne7 {[%emt 0:00:32]} 16. g5 {[%emt 0:05:28]} Bxe5 {[%emt 0:00:02]} 17. fxe5 {[%emt 0:01:34]} Ne8 {[%emt 0:00:17]} 18. Ba3 {[%emt 0:05:16]} Qd8 {[%emt 0:00:49]} 19. Bxh7+ {[%emt 0:10:30]} Kxh7 {[%emt 0:00:09]} 20. Qh5+ {[%emt 0:00:05]} Kg8 {[%emt 0:00:05]} 21. g6 {[%emt 0:00:04]} Nxg6 {[%emt 0:06:21]} 22. Bxf8 {[%emt 0:00:21]} Nxf8 {[%emt 0:01:03]} 23. Qxf7+ {[%emt 0:00:08]} Kh7 {[%emt 0:00:03]} 24. Qh5+ {[%emt 0:07:06]} Kg8 {[%emt 0:00:11]} 25. Rxf8+ {[%emt 0:00:12]} Kxf8 {[%emt 0:00:16]} 26. Qh8+ {[%emt 0:04:57]} Ke7 {[%emt 0:01:05]} 27. Rf1 {[%emt 0:00:22]} Qb6 {[%emt 0:01:43]} 28. Qh4+ {[%emt 0:00:15]} Nf6 {[%emt 0:00:10]} 29. exf6+ {[%emt 0:00:04]} gxf6 {[%emt 0:01:14]} 30. Qxf6+ {[%emt 0:00:06]} Kd6 {[%emt 0:00:10]} 31. Qe5+ {[%emt 0:00:25]} Ke7 {[%emt 0:00:13]} 32. Qg7+ {[%emt 0:00:04]} Kd6 {[%emt 0:00:26]} 33. Rf7 {[%emt 0:00:20]} c5 {[%emt 0:02:03]} 34. Rxd7+ {[%emt 0:00:16]} Kc6 {[%emt 0:00:08]} 35. Qe7 {[%emt 0:00:35]} Rg8+ {[%emt 0:00:35]} 36. Kh1 {[%emt 0:00:08]} 1-0

[Event "AUT-ch U18 Boys 2022"]
[Site "Sankt Veit an der Glan"]
[Date "2022.04.10"]
[Round "1"]
[White "Schilcher, Marcel"]
[Black "Kristoferitsch, Daniel"]
[Result "0-1"]
[ECO "A47"]
[WhiteElo "1671"]
[BlackElo "2253"]
[Annotator "RC"]
[PlyCount "64"]
[EventDate "2022.04.11"]
[EventType "swiss"]
[EventCountry "AUT"]
[SourceTitle "playchess.com"]
[Source "ChessBase"]
[SourceQuality "1"]
[TimeControl "5400+30"]

1. d4 {[%emt 0:00:03]} Nf6 {[%emt 0:00:09]} 2. Bf4 {[%emt 0:00:05]} b6 {[%emt 0:00:07]} 3. e3 {[%emt 0:02:43]} Bb7 {[%emt 0:00:13]} 4. Nf3 {[%emt 0:00:34]} g6 {[%emt 0:00:16]} 5. c4 {[%emt 0:01:49]} Bg7 {[%emt 0:00:09]} 6. Nc3 {[%emt 0:00:17]} O-O {[%emt 0:01:21]} 7. Be2 {[%emt 0:03:54]} d6 {[%emt 0:02:21]} 8. Qd2 {[%emt 0:07:51]} Nbd7 {[%emt 0:02:45]} 9. h4 {[%emt 0:04:33]} Nh5 {[%emt 0:15:59]} 10. Bh2 {[%emt 0:00:45]} e5 {[%emt 0:04:28]} 11. d5 {[%emt 0:20:07]} a5 {[%emt 0:08:53]} 12. O-O-O {[%emt 0:05:49]} Nc5 {[%emt 0:01:48]} 13. Ng5 {[%emt 0:11:01]} Nf6 {[%emt 0:10:29]} 14. Rdf1 {[%emt 0:10:32]} h6 {[%emt 0:02:02]} 15. Nf3 {[%emt 0:01:53]} c6 {[%emt 0:01:36]} 16. Kb1 {[%emt 0:04:39]} Nce4 {[%emt 0:02:59]} 17. Nxe4 {[%emt 0:01:49]} Nxe4 {[%emt 0:00:07]} 18. Qd3 {[%emt 0:00:13]} Nc5 {[%emt 0:00:20]} 19. Qd2 {[%emt 0:02:32]} cxd5 {[%emt 0:03:39]} 20. cxd5 {[%emt 0:00:07]} Qd7 {[%emt 0:00:16]} 21. Ne1 {[%emt 0:04:59]} Ne4 {[%emt 0:05:15]} 22. Qd3 {[%emt 0:01:35]} Nc5 {[%emt 0:01:59]} 23. Qd2 {[%emt 0:00:39]} Rfc8 {[%emt 0:06:40]} 24. f3 {[%emt 0:06:15]} e4 {[%emt 0:03:30]} 25. Nc2 {[%emt 0:00:58]} b5 {[%emt 0:05:26]} 26. Na3 {[%emt 0:01:47]} Ba6 {[%emt 0:02:22]} 27. Rc1 {[%emt 0:00:22]} Na4 {[%emt 0:08:38]} 28. Rxc8+ {[%emt 0:02:36]} Rxc8 {[%emt 0:00:04]} 29. Qxa5 {[%emt 0:00:15]} Bxb2 {[%emt 0:00:07]} 30. Qxa6 {[%emt 0:01:36]} Bxa3 {[%emt 0:00:05]} 31. Bxb5 {[%emt 0:01:12]} Nc3+ {[%emt 0:00:36]} 32. Ka1 {[%emt 0:00:06]} Nxb5 {[%emt 0:00:04]} 0-1

[Event "AUT-ch U18 Boys 2022"]
[Site "Sankt Veit an der Glan"]
[Date "2022.04.10"]
[Round "1"]
[White "Marte, Lukas"]
[Black "Hechl, Fabian"]
[Result "0-1"]
[ECO "C55"]
[WhiteElo "1614"]
[BlackElo "2023"]
[Annotator "NA RC"]
[PlyCount "80"]
[EventDate "2022.04.11"]
[EventType "swiss"]
[EventCountry "AUT"]
[SourceTitle "playchess.com"]
[Source "ChessBase"]
[SourceQuality "1"]
[TimeControl "5400+30"]

1. e4 {[%emt 0:00:05]} e5 {[%emt 0:00:03]} 2. Nf3 {[%emt 0:00:07]} Nc6 {[%emt 0:00:03]} 3. Bc4 {[%emt 0:00:16]} Nf6 {[%emt 0:00:06]} 4. d3 {[%emt 0:00:17]} h6 {[%emt 0:00:06]} 5. O-O {[%emt 0:04:37]} d6 {[%emt 0:00:04]} 6. a4 {[%emt 0:06:53]} g6 {[%emt 0:00:19]} 7. Nbd2 {[%emt 0:08:52]} Bg7 {[%emt 0:02:05]} 8. Re1 {[%emt 0:06:06]} O-O {[%emt 0:03:16]} 9. c3 {[%emt 0:01:50]} d5 {[%emt 0:07:12]} 10. Ba2 {[%emt 0:13:05]} dxe4 {[%emt 0:10:21]} 11. dxe4 {[%emt 0:02:53]} a5 {[%emt 0:01:51]} 12. Qc2 {[%emt 0:04:10]} b6 {[%emt 0:06:07]} 13. Nc4 {[%emt 0:03:19]} Nh5 {[%emt 0:05:17]} 14. Be3 {[%emt 0:11:40]} Be6 {[%emt 0:01:33]} 15. Bb3 {[%emt 0:01:45]} g5 {[%emt 0:02:37]} 16. h3 {[%emt 0:02:42]} Qf6 {[%emt 0:02:55]} 17. Nh2 {[%emt 0:05:10]} Qg6 {[%emt 0:07:50]} 18. g4 {[%emt 0:05:32]} Nf4 {[%emt 0:01:53]} 19. Bxf4 {[%emt 0:00:09]} exf4 {[%emt 0:07:55]} 20. f3 {[%emt 0:02:12]} Rfd8 {[%emt 0:01:34]} 21. Rad1 {[%emt 0:00:22]} Bf8 {[%emt 0:03:54]} 22. Nf1 {[%emt 0:01:20]} Bc5+ {[%emt 0:06:24]} 23. Kg2 {[%emt 0:00:06]} Rxd1 {[%emt 0:01:33]} 24. Rxd1 {[%emt 0:00:09]} Qf6 {[%emt 0:00:35]} 25. Nfd2 {[%emt 0:00:46]} Rd8 {[%emt 0:01:03]} 26. Nb1 {[%emt 0:00:32]} Rxd1 {[%emt 0:09:43]} 27. Qxd1 {[%emt 0:00:09]} Qd8 {[%emt 0:02:45]} 28. Qc2 {[%emt 0:03:05]} Ne7 {[%emt 0:05:41]} 29. Ne5 {[%emt 0:01:51]} Qd6 {[%emt 0:00:50]} 30. Nc4 {[%emt 0:01:59]} Bxc4 {[%emt 0:01:43]} 31. Bxc4 {[%emt 0:00:09]} Ng6 {[%emt 0:00:09]} 32. Nd2 {[%emt 0:00:49]} Nh4+ {[%emt 0:01:42]} 33. Kf1 {[%emt 0:01:12]} Be3 {[%emt 0:00:40]} 34. Ke2 {[%emt 0:01:05]} Qc5 {[%emt 0:03:39]} 35. Bb3 {[%emt 0:05:45]} Bg1 {[%emt 0:00:32]} 36. Qd3 {[%emt 0:00:20]} Qf2+ {[%emt 0:02:07]} 37. Kd1 {[%emt 0:00:10]} Ng2 {[%emt 0:00:12]} 38. Bxf7+ {[%emt 0:03:08]} Kg7 {[%emt 0:00:57]} 39. b3 {[%emt 0:01:34]} Qe1+ {[%emt 0:01:40]} 40. Kc2 {[%emt 0:00:07]} Qa1 {[%emt 0:00:42]} 0-1

[Event "AUT-ch U18 Boys 2022"]
[Site "Sankt Veit an der Glan"]
[Date "2022.04.10"]
[Round "1"]
[White "Liotta, Marcel"]
[Black "Buchegger, Fridolin"]
[Result "0-1"]
[ECO "A48"]
[WhiteElo "1551"]
[BlackElo "2010"]
[Annotator "NA RC"]
[PlyCount "134"]
[EventDate "2022.04.11"]
[EventType "swiss"]
[EventCountry "AUT"]
[SourceTitle "playchess.com"]
[Source "ChessBase"]
[SourceQuality "1"]
[TimeControl "5400+30"]

1. d4 {[%emt 0:00:01]} Nf6 {[%emt 0:00:08]} 2. Nf3 {[%emt 0:00:05]} g6 {[%emt 0:00:11]} 3. e3 {[%emt 0:00:02]} Bg7 {[%emt 0:00:14]} 4. Bd3 {[%emt 0:00:11]} d6 {[%emt 0:00:31]} 5. O-O {[%emt 0:00:09]} O-O {[%emt 0:01:23]} 6. b3 {[%emt 0:00:06]} e5 {[%emt 0:04:43]} 7. dxe5 {[%emt 0:02:12]} Ng4 {[%emt 0:01:26]} 8. Nbd2 {[%emt 0:01:49]} Nc6 {[%emt 0:00:52]} 9. a3 {[%emt 0:00:20]} Ncxe5 {[%emt 0:00:53]} 10. Rb1 {[%emt 0:03:51]} b6 {[%emt 0:20:07]} 11. Bb2 {[%emt 0:03:24]} Bb7 {[%emt 0:00:37]} 12. Nxe5 {[%emt 0:00:19]} Nxe5 {[%emt 0:00:22]} 13. Be2 {[%emt 0:00:47]} Qe7 {[%emt 0:05:53]} 14. Nf3 {[%emt 0:04:56]} Rad8 {[%emt 0:01:16]} 15. c4 {[%emt 0:04:07]} d5 {[%emt 0:04:58]} 16. Bxe5 {[%emt 0:03:23]} Bxe5 {[%emt 0:00:39]} 17. Nxe5 {[%emt 0:00:36]} Qxe5 {[%emt 0:05:11]} 18. Qe1 {[%emt 0:00:20]} dxc4 {[%emt 0:01:31]} 19. Bxc4 {[%emt 0:00:24]} Qg5 {[%emt 0:06:49]} 20. f3 {[%emt 0:01:19]} b5 {[%emt 0:00:47]} 21. h4 {[%emt 0:03:17]} Qc5 {[%emt 0:00:44]} 22. Be2 {[%emt 0:00:57]} Qxe3+ {[%emt 0:10:50]} 23. Kh1 {[%emt 0:00:14]} a6 {[%emt 0:01:20]} 24. Rb2 {[%emt 0:10:53]} Rfe8 {[%emt 0:01:07]} 25. Qc1 {[%emt 0:09:49]} Qxc1 {[%emt 0:10:45]} 26. Rxc1 {[%emt 0:00:04]} Re7 {[%emt 0:00:14]} 27. Rbc2 {[%emt 0:00:31]} Bd5 {[%emt 0:00:34]} 28. Rd2 {[%emt 0:04:47]} c6 {[%emt 0:00:57]} 29. b4 {[%emt 0:00:26]} Rde8 {[%emt 0:02:35]} 30. Bd3 {[%emt 0:01:17]} Re1+ {[%emt 0:02:53]} 31. Rxe1 {[%emt 0:01:28]} Rxe1+ {[%emt 0:00:07]} 32. Kh2 {[%emt 0:00:02]} Ra1 {[%emt 0:00:11]} 33. Rc2 {[%emt 0:15:44]} Rxa3 {[%emt 0:04:31]} 34. Be4 {[%emt 0:00:13]} Bc4 {[%emt 0:01:32]} 35. Bxc6 {[%emt 0:03:47]} Rb3 {[%emt 0:00:13]} 36. Bb7 {[%emt 0:00:05]} Rxb4 {[%emt 0:00:11]} 37. Bxa6 {[%emt 0:00:05]} Ra4 {[%emt 0:00:07]} 38. Bb7 {[%emt 0:02:22]} Ra2 {[%emt 0:00:23]} 39. Rc1 {[%emt 0:01:47]} Rb2 {[%emt 0:02:49]} 40. Kg1 {[%emt 0:01:30]} Kg7 {[%emt 0:00:35]} 41. Ba6 {[%emt 0:03:48]} Bd3 {[%emt 0:01:00]} 42. Rc5 {[%emt 0:01:10]} Kf6 {[%emt 0:00:37]} 43. f4 {[%emt 0:02:54]} Bc4 {[%emt 0:01:24]} 44. h5 {[%emt 0:02:42]} Ke6 {[%emt 0:00:29]} 45. hxg6 {[%emt 0:00:11]} hxg6 {[%emt 0:00:07]} 46. Rxc4 {[%emt 0:04:04]} bxc4 {[%emt 0:00:08]} 47. Bxc4+ {[%emt 0:00:04]} Ke7 {[%emt 0:01:05]} 48. g3 {[%emt 0:00:42]} Rc2 {[%emt 0:00:17]} 49. Bf1 {[%emt 0:00:29]} Rd2 {[%emt 0:00:28]} 50. Bc4 {[%emt 0:00:44]} f6 {[%emt 0:00:06]} 51. Kf1 {[%emt 0:00:21]} Kd6 {[%emt 0:00:22]} 52. Bf7 {[%emt 0:00:52]} g5 {[%emt 0:00:04]} 53. fxg5 {[%emt 0:00:05]} fxg5 {[%emt 0:00:06]} 54. Bh5 {[%emt 0:00:36]} Ke5 {[%emt 0:00:12]} 55. Be2 {[%emt 0:00:38]} Ke4 {[%emt 0:00:52]} 56. Kf2 {[%emt 0:00:23]} Rb2 {[%emt 0:01:11]} 57. Kf1 {[%emt 0:03:27]} Rxe2 {[%emt 0:00:08]} 58. Kxe2 {[%emt 0:00:13]} g4 {[%emt 0:00:07]} 59. Kf2 {[%emt 0:00:19]} Kd3 {[%emt 0:00:06]} 60. Kf1 {[%emt 0:01:10]} Ke3 {[%emt 0:00:06]} 61. Kg2 {[%emt 0:00:05]} Ke2 {[%emt 0:00:11]} 62. Kg1 {[%emt 0:00:45]} Kf3 {[%emt 0:00:05]} 63. Kh2 {[%emt 0:00:06]} Kf2 {[%emt 0:00:05]} 64. Kh1 {[%emt 0:00:07]} Kxg3 {[%emt 0:00:03]} 65. Kg1 {[%emt 0:00:12]} Kf3 {[%emt 0:00:05]} 66. Kf1 {[%emt 0:00:09]} g3 {[%emt 0:00:05]} 67. Kg1 {[%emt 0:00:07]} g2 {[%emt 0:00:05]} 0-1

[Event "AUT-ch U18 Boys 2022"]
[Site "Sankt Veit an der Glan"]
[Date "2022.04.10"]
[Round "1"]
[White "Pribozic, Manuel"]
[Black "Cafasso, Elia"]
[Result "0-1"]
[ECO "C56"]
[WhiteElo "1543"]
[BlackElo "2061"]
[Annotator "NA RC"]
[PlyCount "78"]
[EventDate "2022.04.11"]
[EventType "swiss"]
[EventCountry "AUT"]
[SourceTitle "playchess.com"]
[Source "ChessBase"]
[SourceQuality "1"]
[TimeControl "5400+30"]

1. e4 {[%emt 0:00:22]} e5 {[%emt 0:00:27]} 2. Nf3 {[%emt 0:00:28]} Nc6 {[%emt 0:00:11]} 3. d4 {[%emt 0:00:19]} exd4 {[%emt 0:00:05]} 4. Bc4 {[%emt 0:00:06]} Nf6 {[%emt 0:01:03]} 5. e5 {[%emt 0:01:15]} d5 {[%emt 0:00:14]} 6. Bb5 {[%emt 0:00:55]} Ne4 {[%emt 0:00:07]} 7. Nxd4 {[%emt 0:01:01]} Bd7 {[%emt 0:00:18]} 8. Bxc6 {[%emt 0:01:19]} bxc6 {[%emt 0:00:03]} 9. O-O {[%emt 0:00:52]} Bc5 {[%emt 0:00:52]} 10. Be3 {[%emt 0:01:20]} Bb6 {[%emt 0:00:44]} 11. f3 {[%emt 0:02:54]} Ng5 {[%emt 0:00:06]} 12. f4 {[%emt 0:00:26]} Ne4 {[%emt 0:00:04]} 13. Nd2 {[%emt 0:00:23]} Nxd2 {[%emt 0:00:05]} 14. Qxd2 {[%emt 0:00:05]} c5 {[%emt 0:03:07]} 15. Nb3 {[%emt 0:01:25]} d4 {[%emt 0:00:03]} 16. Bf2 {[%emt 0:00:09]} Bc6 {[%emt 0:01:22]} 17. c4 {[%emt 0:12:19]} a5 {[%emt 0:04:13]} 18. a4 {[%emt 0:13:00]} O-O {[%emt 0:10:37]} 19. f5 {[%emt 0:08:34]} f6 {[%emt 0:03:33]} 20. Bh4 {[%emt 0:05:46]} Qe8 {[%emt 0:03:39]} 21. exf6 {[%emt 0:08:43]} gxf6 {[%emt 0:00:07]} 22. Rae1 {[%emt 0:27:56]} Qh5 {[%emt 0:00:15]} 23. Qf4 {[%emt 0:00:43]} Rae8 {[%emt 0:07:15]} 24. Re6 {[%emt 0:03:27]} Rxe6 {[%emt 0:03:33]} 25. Qg3+ {[%emt 0:00:34]} Kf7 {[%emt 0:01:21]} 26. fxe6+ {[%emt 0:00:06]} Kxe6 {[%emt 0:00:05]} 27. Qh3+ {[%emt 0:00:12]} f5 {[%emt 0:00:21]} 28. Re1+ {[%emt 0:00:49]} Kd7 {[%emt 0:00:11]} 29. Re7+ {[%emt 0:01:59]} Kc8 {[%emt 0:00:06]} 30. Nxc5 {[%emt 0:00:34]} Rg8 {[%emt 0:01:38]} 31. Bg3 {[%emt 0:01:31]} Qxh3 {[%emt 0:00:07]} 32. gxh3 {[%emt 0:00:03]} f4 {[%emt 0:00:01]} 33. Ne4 {[%emt 0:02:14]} Bxe4 {[%emt 0:01:06]} 34. Rxe4 {[%emt 0:00:05]} d3+ {[%emt 0:00:53]} 35. Kf1 {[%emt 0:00:10]} fxg3 {[%emt 0:00:03]} 36. hxg3 {[%emt 0:00:07]} Rxg3 {[%emt 0:00:12]} 37. Rg4 {[%emt 0:00:28]} Rxg4 {[%emt 0:00:39]} 38. hxg4 {[%emt 0:00:04]} Be3 {[%emt 0:00:05]} 39. Ke1 {[%emt 0:00:37]} c5 {[%emt 0:00:07]} 0-1